bitfinex/quotes_ETHUSD_20220105
["timestamp","ask_amount","ask_price","bid_price","bid_amount"]
[1641422128885,1.0,3442.4,3441.7,0.7265188]
[1641422129084,1.0,3442.4,3441.9,0.72651]
[1641422129284,1.0,3442.4,3441.9,0.12799447]
[1641422129487,5.82325865,3442.3,3441.9,0.8633]
[1641422129685,5.82610077,3442.3,3441.9,0.8633]
[1641422129886,0.00110369,3442.3,3442.0,0.00284355]
[1641422130295,5.8103,3442.2,3442.0,0.00398039]
[1641422130486,0.01226562,3443.0,3442.0,0.00398039]
[1641422130691,0.5,3443.6,3442.7,0.72621]
[1641422130888,0.5,3443.6,3442.7,1.77121]
[1641422130889,5.8097,3442.9,3442.7,1.77121]
[1641422131088,0.00341054,3443.5,3442.7,1.77121]
[1641422131295,0.00341054,3443.5,3443.0,0.72618]
[1641422131296,5.8087,3443.4,3443.0,0.72618]
[1641422131500,5.8087,3443.4,3442.5,1.4524651]
[1641422131501,5.8770911,3443.4,3442.5,1.4524651]
[1641422131705,5.8770911,3443.4,3442.0,0.00284355]
[1641422131706,0.01254595,3443.1,3442.0,0.00284355]
[1641422131928,0.01280819,3442.6,3442.0,0.00284355]
[1641422132102,1.0,3443.5,3442.0,0.00284355]
[1641422132103,0.01292177,3442.1,3442.0,0.00284355]
[1641422132302,5.82162177,3442.1,3442.0,0.00284355]
[1641422132701,5.88717076,3442.1,3441.9,0.10539456]
[1641422132906,6.42162177,3442.1,3441.9,0.10539456]
[1641422133303,6.42162177,3442.1,3440.4,2.17958]
[1641422133304,6.42162177,3442.1,3440.4,0.93697456]
[1641422133607,8.13509356,3443.4,3440.4,0.93697456]
[1641422133608,1.0,3441.3,3441.0,0.01290536]
[1641422133803,0.0128259,3444.8,3441.0,0.01290536]
[1641422133804,0.1136,3442.9,3441.0,0.01290536]
[1641422134108,0.5,3444.2,3441.1,0.01307374]
[1641422134303,3.0,3443.8,3441.1,0.01307374]
[1641422134505,0.02629144,3443.9,3441.1,0.01307374]
[1641422134506,0.72677,3443.0,3441.1,0.01307374]
[1641422135146,0.72677,3443.0,3440.8,0.01286087]
[1641422135346,0.0478217,3442.9,3440.8,0.01286087]
[1641422135550,0.0478217,3442.9,3440.6,8.26590403]
[1641422135551,0.01023163,3442.9,3440.9,0.00113684]
[1641422135747,0.01279845,3443.2,3440.9,0.00113684]
[1641422135748,0.0096632,3442.8,3440.9,0.00113684]
[1641422135947,0.0096632,3442.8,3440.7,0.00227369]
[1641422136147,0.00909478,3442.7,3440.7,0.00227369]
[1641422136547,0.00852636,3442.6,3440.7,0.00227369]
[1641422136946,0.00795793,3442.5,3440.7,0.00227369]
[1641422137147,0.00795793,3442.5,3440.8,0.13819997]
[1641422137349,5.81858951,3442.4,3440.8,0.13819997]
[1641422137749,0.00682109,3442.3,3440.8,0.13819997]
[1641422137951,0.00682109,3442.3,3441.1,0.72658]
[1641422137952,5.8112,3442.2,3441.1,0.72658]
[1641422138152,5.8112,3442.2,3441.2,6.8006826]
[1641422138153,5.81745266,3442.2,3441.2,6.8006826]
[1641422138350,0.00568424,3442.1,3441.2,6.8006826]
[1641422138551,1.95309,3444.2,3441.2,6.8006826]
[1641422138552,0.1027,3445.9,3442.0,0.01256147]
[1641422138809,1.404,3448.2,3443.7,0.0123658]
[1641422138810,3.0,3447.1,3443.7,0.0123658]
[1641422138996,3.0,3447.1,3444.4,0.7258571]
[1641422138997,0.01296574,3446.7,3444.4,0.7258571]
[1641422139197,0.01296574,3446.7,3443.8,0.13819997]
[1641422139198,2.99920428,3448.3,3444.7,0.01276462]
[1641422139397,2.99920428,3448.3,3445.1,2.1763001]
[1641422139599,3.15381924,3448.3,3446.6,0.01263065]
[1641422139800,3.97663679,3448.8,3446.7,0.13819997]
[1641422139801,0.00909477,3448.2,3446.7,0.13819997]
[1641422140208,0.01255666,3449.4,3446.7,0.13819997]
[1641422140209,0.00852635,3448.1,3446.7,0.86349997]
[1641422140404,0.00852635,3448.1,3446.7,0.13819997]
[1641422140602,0.07810565,3449.4,3446.8,0.13819997]
[1641422140603,0.00795792,3448.0,3446.8,0.13819997]
[1641422140806,5.8015,3447.9,3446.8,0.90968337]
[1641422141003,0.07810565,3449.4,3446.8,0.90968337]
[1641422141205,5.8003,3449.3,3447.0,0.7251632]
[1641422141403,5.80825793,3449.3,3447.3,0.72514]
[1641422141812,5.80825793,3449.3,3447.4,6.53816204]
[1641422142010,3.13091754,3449.3,3447.4,6.55085927]
[1641422142208,0.034,3452.3,3449.0,0.01261061]
[1641422142410,0.034,3452.3,3449.7,0.72462]
[1641422142655,0.034,3452.3,3449.7,0.36335804]
[1641422142656,3.97663679,3449.9,3449.7,0.36335804]
[1641422142852,0.01477901,3451.9,3449.8,0.01204912]
[1641422143053,1.71183513,3452.3,3449.8,0.01204912]
[1641422143054,1.71183513,3452.3,3451.4,0.0125682]
[1641422143253,5.794,3452.2,3451.4,0.0125682]
[1641422143456,0.01648428,3452.2,3451.4,0.0125682]
[1641422143653,1.71183513,3452.3,3451.5,0.72418]
[1641422143857,0.01281729,3453.7,3451.5,0.71017021]
[1641422144058,0.01281729,3453.7,3451.6,0.00341054]
[1641422144255,0.00795793,3453.6,3451.6,0.00341054]
[1641422144454,0.00795793,3453.6,3450.8,0.01268262]
[1641422144654,0.01277047,3452.9,3450.1,0.69736763]
[1641422144858,0.01277047,3452.9,3450.9,0.00170527]
[1641422145155,0.00909478,3452.8,3449.9,6.54270942]
[1641422145355,0.00909478,3452.8,3450.5,1.4609343]
[1641422145356,5.7948,3452.7,3450.5,1.4609343]
[1641422145655,0.00795793,3452.6,3450.8,1.4483693]
[1641422145855,5.7948,3452.5,3450.9,7.26889795]
[1641422146057,5.80218951,3452.5,3450.9,7.26889795]
[1641422146291,0.00682109,3452.4,3451.0,0.00113684]
[1641422146492,5.7948,3452.3,3451.0,0.00113684]
[1641422146696,5.80105266,3452.3,3451.3,0.72417]
[1641422146997,0.00568424,3452.2,3451.3,0.72417]
[1641422147196,5.7948,3452.1,3451.3,0.72417]
[1641422147401,0.00676582,3452.1,3451.3,0.73662939]
[1641422147597,0.00454739,3452.0,3451.3,0.73662939]
[1641422147999,5.79827897,3451.9,3451.3,0.73662939]
[1641422148200,2.87842533,3451.9,3451.3,0.73662939]
[1641422148399,2.87842533,3451.9,3451.4,0.00284212]
[1641422148799,3.3716495,3453.1,3451.4,0.00284212]
[1641422148997,5.7933,3453.0,3451.4,6.48299792]
[1641422149202,5.79955266,3453.0,3451.4,0.00284212]
[1641422149401,5.79955266,3453.0,3451.5,0.0022737]
[1641422149602,5.79955266,3453.0,3451.4,0.00284212]
[1641422149900,5.80321145,3453.0,3451.4,0.00284212]
[1641422150165,5.73766246,3453.0,3451.4,0.00284212]
[1641422150954,5.80321145,3453.0,3451.4,0.00284212]
[1641422151156,5.73766246,3453.0,3451.4,0.00284212]
[1641422151360,5.73766246,3453.0,3451.5,0.00272994]
[1641422151754,5.73766246,3453.0,3452.1,0.01211317]
[1641422152558,5.32646206,3453.0,3452.1,0.01211317]
[1641422152953,2.45299461,3453.0,3452.2,0.7240643]
[1641422153153,1.0,3453.2,3452.2,0.7240643]
[1641422153357,3.3716495,3454.2,3452.3,0.00397897]
[1641422153555,0.00113684,3453.2,3452.9,0.01289121]
[1641422153797,0.00113684,3453.2,3452.3,0.00397897]
[1641422153798,5.7916,3453.1,3452.3,0.00397897]
[1641422153996,4.29342034,3453.1,3452.3,0.00397897]
[1641422154196,3.3716495,3454.2,3452.8,0.0079274]
[1641422154594,5.79631581,3454.1,3452.9,0.00170527]
[1641422154798,5.8618648,3454.1,3452.9,0.00170527]
[1641422154997,0.00454739,3454.0,3452.5,0.00397896]
[1641422155198,5.7912,3453.9,3452.5,0.00397896]
[1641422155399,5.7912,3453.9,3452.7,0.7239902]
[1641422155400,5.79517897,3453.9,3452.7,0.7239902]
[1641422155600,0.00341054,3453.8,3452.7,0.7239902]
[1641422155802,0.00341054,3453.8,3452.8,0.00227369]
[1641422155803,5.7912,3453.7,3452.8,0.00227369]
[1641422156099,3.38401675,3455.0,3453.3,0.0058427]
[1641422156302,3.38401675,3455.0,3452.8,0.00227369]
[1641422156303,3.3716495,3455.0,3452.8,0.00511581]
[1641422156601,3.3716495,3455.0,3453.5,0.723845]
[1641422156602,5.79638424,3454.7,3453.5,0.723845]
[1641422157002,0.00511581,3454.6,3453.5,0.723845]
[1641422157206,5.7907,3454.5,3453.0,1.4477604]
[1641422157404,5.79524739,3454.5,3453.0,1.4477604]
[1641422157648,5.7907,3454.5,3453.5,0.01259472]
[1641422157851,5.7907,3454.5,3453.8,1.4474169]
[1641422157852,5.57372526,3454.5,3453.8,1.4474169]
[1641422158051,3.3716495,3455.0,3453.8,0.99998152]
[1641422158251,3.3716495,3455.0,3453.9,0.00284212]
[1641422158452,5.7896,3454.9,3453.9,0.00284212]
[1641422158651,0.000244,3454.9,3453.9,0.00284212]
[1641422158954,0.00227369,3454.8,3453.9,0.00284212]
[1641422159151,3.90934129,3456.7,3453.9,6.39386237]
[1641422159355,0.75845307,3458.1,3455.6,0.01254847]
[1641422159653,0.01329905,3458.4,3456.6,0.0127221]
[1641422159856,5.7724,3458.0,3457.0,1.0]
[1641422160059,3.6631,3460.1,3457.3,0.01232699]
[1641422160060,3.67584439,3460.1,3457.3,0.01232699]
[1641422160255,0.01274439,3460.1,3457.3,0.01232699]
[1641422160452,0.01274439,3460.1,3457.4,0.00511581]
[1641422160453,0.00227369,3458.7,3457.4,0.00511581]
[1641422160654,0.01274439,3460.1,3458.2,0.71456802]
[1641422160655,5.7836,3458.6,3458.2,0.71456802]
[1641422161051,0.0019764,3458.6,3458.3,0.00227369]
[1641422161721,0.00738951,3460.0,3458.2,0.71341978]
[1641422161922,5.78403685,3458.5,3458.2,0.71341978]
[1641422162125,0.0011937,3458.5,3458.2,0.71341978]
[1641422162324,0.0011937,3458.5,3458.2,0.7117576]
[1641422162724,5.7831,3458.4,3458.2,0.7117576]
[1641422162923,5.7331,3458.4,3458.2,0.7117576]
[1641422163125,0.00909478,3459.9,3458.2,0.7117576]
[1641422163528,0.00852635,3459.8,3458.2,0.7117576]
[1641422163726,5.782,3459.7,3458.2,0.7117576]
[1641422163926,5.78995793,3459.7,3458.2,0.7117576]
[1641422164130,0.00738951,3459.6,3458.3,0.01249387]
[1641422164327,5.782,3459.5,3458.3,0.01249387]
[1641422164526,5.78882108,3459.5,3457.9,1.5]
[1641422164727,0.00625266,3459.4,3457.6,0.7226808]
[1641422164927,5.782,3459.3,3458.0,0.00170527]
[1641422165148,5.78768423,3459.3,3458.0,0.00170527]
[1641422165349,5.78768423,3459.3,3457.6,0.00397896]
[1641422165350,0.00511581,3459.2,3457.6,0.00397896]
[1641422165552,5.782,3459.1,3457.6,0.00397896]
[1641422165751,3.65388844,3459.1,3457.8,0.7226509]
[1641422165950,0.00397896,3459.0,3457.8,0.7226509]
[1641422166155,0.07,3459.8,3458.3,0.01285824]
[1641422166353,5.7819,3459.7,3458.9,0.01281103]
[1641422166554,0.07,3459.8,3459.6,0.01296984]
[1641422166856,3.7842,3462.7,3459.6,0.01296984]
[1641422166857,4.60950556,3460.6,3459.7,0.01259269]
[1641422167055,3.58547954,3461.1,3459.7,0.01259269]
[1641422167252,3.58547954,3461.1,3460.5,0.01275579]
[1641422168055,0.00852635,3461.2,3460.5,0.01275579]
[1641422168454,3.15031736,3462.8,3461.1,0.01250376]
[1641422168655,5.7771,3462.7,3461.1,0.01120678]
[1641422168906,0.00397896,3461.9,3461.1,0.01120678]
[1641422169104,5.7771,3461.8,3461.1,0.01120678]
[1641422169305,5.78051054,3461.8,3461.1,0.01120678]
[1641422169508,0.00284212,3461.7,3461.1,0.01120678]
[1641422169705,5.7771,3461.6,3461.1,0.01120678]
[1641422169907,5.77937369,3461.6,3461.0,3.0]
[1641422170106,0.00170527,3461.5,3461.1,0.00388153]
[1641422170307,5.67880527,3461.4,3461.1,0.00388153]
[1641422170607,0.41901349,3461.4,3461.2,0.01373891]
[1641422170809,0.00852635,3463.0,3461.2,0.01373891]
[1641422171011,0.00852635,3463.0,3461.3,0.00113685]
[1641422171208,3.9541,3465.1,3461.3,0.00113685]
[1641422171209,5.7768,3462.9,3461.3,0.00113685]
[1641422171411,5.7768,3462.9,3462.0,0.01290696]
[1641422171809,5.7768,3462.9,3462.1,0.00511581]
[1641422172410,5.7768,3462.9,3461.4,0.66857258]
[1641422172649,0.00397897,3462.8,3461.4,0.66857258]
[1641422172850,5.7768,3462.7,3461.5,0.00341054]
[1641422173050,5.78021054,3462.7,3461.5,0.00616348]
[1641422173252,0.00284212,3462.6,3461.9,3.0]
[1641422173452,5.7768,3462.5,3461.9,3.0]
[1641422173652,4.91048362,3462.5,3461.9,3.0]
[1641422173852,0.00170527,3462.4,3461.9,3.0]
[1641422174154,3.48465799,3462.5,3461.9,3.0]
[1641422174355,3.48465799,3462.5,3462.2,0.01239919]
[1641422174558,3.31310814,3462.5,3462.2,0.01239919]
[1641422174756,3.1462728,3462.5,3462.2,0.01239919]
[1641422174956,1.89500772,3462.5,3462.2,0.01239919]
[1641422175559,1.89500772,3462.5,3462.2,0.01627965]
[1641422176159,0.27639994,3463.9,3462.2,0.01627965]
[1641422176160,0.13819997,3463.9,3462.2,0.01627965]
[1641422176397,5.7753,3463.8,3462.2,0.01627965]
[1641422176598,5.78325793,3463.8,3462.2,0.01627965]
[1641422177207,5.78325793,3463.8,3462.8,3.0]
[1641422178906,5.60501066,3463.8,3462.8,3.0]
[1641422179108,5.60501066,3463.8,3462.9,1.47085572]
[1641422179507,5.60501066,3463.8,3463.0,0.01228269]
[1641422179712,5.60501066,3463.8,3463.0,0.73389269]
[1641422179908,5.60501066,3463.8,3463.0,0.72161]
[1641422180368,5.55501066,3463.8,3463.3,2.96852129]
[1641422180767,5.55501066,3463.8,3463.3,2.97240046]
[1641422181767,4.60145219,3463.8,3463.7,2.96852129]
[1641422182566,4.60145219,3463.8,3463.3,0.01610429]
[1641422182766,0.13819997,3464.6,3463.3,4.92576243]
[1641422182967,0.13819997,3464.6,3463.3,11.31069481]
[1641422183168,5.2238,3464.5,3463.4,0.00227369]
[1641422183367,5.2238,3464.5,3463.4,7.53414503]
[1641422183570,5.2238,3464.5,3463.4,7.53664769]
[1641422183798,5.2238,3464.5,3463.5,0.00568423]
[1641422184001,5.2238,3464.5,3463.5,0.72716373]
[1641422184202,5.2238,3464.5,3463.5,4.91534237]
[1641422184402,5.2238,3464.5,3463.6,6.09004819]
[1641422184608,5.2238,3464.5,3463.6,0.30511581]
[1641422184806,5.2238,3464.5,3463.7,0.00454738]
[1641422185006,5.2238,3464.5,3463.9,0.72147]
[1641422185405,5.2238,3464.5,3464.0,0.00284211]
[1641422185604,5.7733,3464.4,3464.0,0.00284211]
[1641422185806,5.2238,3464.3,3464.0,0.00284211]
[1641422186006,5.2238,3464.3,3464.1,0.00387834]
[1641422186206,5.7233,3464.4,3464.1,0.00387834]
[1641422186407,5.7233,3464.4,3464.2,0.00170527]
[1641422186609,5.72166763,3464.4,3464.2,0.01435811]
[1641422186811,0.00113685,3464.7,3464.2,0.01435811]
[1641422187110,5.7729,3464.6,3464.3,0.00113684]
[1641422187309,5.7729,3464.5,3464.3,0.00113684]
[1641422187553,5.52294306,3464.4,3464.3,0.00113684]
[1641422187752,3.60794721,3464.4,3464.3,0.00113684]
[1641422187950,7.21167516,3464.4,3464.3,0.00113684]
[1641422188152,0.00113685,3464.7,3464.3,0.00113684]
[1641422188352,3.8488,3466.2,3464.3,5.96196478]
[1641422188556,3.8488,3466.2,3464.4,16.71]
[1641422188751,3.8488,3466.2,3465.1,0.01270569]
[1641422188752,0.00795793,3466.1,3465.1,0.01270569]
[1641422189153,0.01241144,3467.6,3465.1,0.01270569]
[1641422189154,5.77838951,3466.0,3465.1,0.01270569]
[1641422189553,0.00682108,3465.9,3465.1,5.97353363]
[1641422189752,0.00217,3465.8,3465.1,0.01270569]
[1641422189954,0.00842266,3465.8,3465.1,0.01270569]
[1641422190162,0.00568424,3465.7,3465.1,0.01270569]
[1641422190454,0.00217,3465.8,3465.1,0.68127827]
[1641422190455,0.00511581,3465.6,3465.1,0.68127827]
[1641422190653,0.00217,3465.8,3465.1,0.68127827]
[1641422190855,0.00217,3465.8,3465.4,0.72114]
[1641422191055,0.00217,3465.8,3465.2,0.00227369]
[1641422191303,0.00217,3465.8,3465.3,0.0038769]
[1641422191501,0.00217,3465.8,3465.3,0.67244948]
[1641422191701,0.00217,3465.8,3465.4,0.00113684]
[1641422191902,5.771,3465.7,3465.4,0.00113684]
[1641422192104,3.76759419,3465.7,3465.4,0.00113684]
[1641422192304,0.01080005,3467.5,3465.4,2.11187942]
[1641422192505,0.01080005,3467.5,3465.6,0.01266382]
[1641422192709,0.01023163,3467.4,3465.6,0.01266382]
[1641422193206,5.76059635,3468.1,3465.6,0.01266382]
[1641422193407,5.61059635,3468.1,3465.7,0.00909477]
[1641422193607,0.00397897,3468.0,3465.7,5.96992271]
[1641422194007,5.56059635,3468.1,3465.8,0.00852635]
[1641422194008,0.00341054,3467.9,3465.8,0.00852635]
[1641422194210,0.00341054,3467.9,3465.8,0.01062676]
[1641422194411,0.72977807,3468.0,3465.8,6.6925447]
[1641422194611,0.72977807,3468.0,3465.9,0.01080005]
[1641422194811,0.27977807,3468.0,3465.9,0.01080005]
[1641422195050,5.85419012,3468.1,3465.9,0.01080005]
[1641422195258,5.22152734,3468.1,3466.4,0.01225478]
[1641422195457,0.00113685,3468.0,3466.4,0.01225478]
[1641422195661,0.00113685,3468.0,3466.5,0.00738951]
[1641422196659,0.00113685,3468.0,3466.5,0.01126451]
[1641422196863,0.00113685,3468.0,3466.5,0.93006451]
[1641422197061,0.00113685,3468.0,3467.2,0.01264645]
[1641422197261,0.00113685,3468.0,3467.3,0.13819997]
[1641422197463,0.00113685,3468.0,3467.3,0.14104209]
[1641422197661,0.00113685,3468.0,3467.4,0.00227369]
[1641422197866,5.22152734,3468.1,3467.4,0.00227369]
[1641422197867,1.08146419,3468.1,3467.6,0.72074]
[1641422198076,1.08146419,3468.1,3468.0,0.01249708]
[1641422198562,0.0122789,3470.5,3468.0,0.01249708]
[1641422199006,0.01364216,3470.4,3468.9,0.3]
[1641422199205,7.04979144,3471.2,3468.9,0.3]
[1641422199206,7.04979144,3471.2,3468.9,0.43819997]
[1641422199405,7.04979144,3471.2,3469.0,0.00795793]
[1641422199604,3.8532,3472.3,3469.0,0.00795793]
[1641422199605,0.00113685,3470.6,3469.0,0.00795793]
[1641422199806,5.764,3470.5,3469.0,0.00795793]
[1641422200005,5.764,3470.5,3469.6,0.01296482]
[1641422200306,3.7222,3471.5,3469.9,0.72025]
[1641422200307,3.5222,3471.5,3469.9,0.72025]
[1641422200509,3.5222,3471.5,3470.0,5.81465854]
[1641422200805,7.03702958,3472.1,3470.1,0.13990524]
[1641422201004,7.03702958,3472.1,3470.6,1.4403]
[1641422201005,5.7624,3471.4,3470.6,1.4403]
[1641422201408,5.7624,3471.4,3470.7,0.00397896]
[1641422201707,0.0001,3471.4,3470.7,0.00397896]
[1641422202103,0.0001,3471.4,3471.0,0.72013]
[1641422202550,0.0022737,3471.8,3471.1,0.00170527]
[1641422202752,0.0022737,3471.8,3471.1,6.50535918]
[1641422202753,5.7613,3471.7,3471.1,6.50535918]
[1641422202956,5.7613,3471.7,3471.1,0.00170527]
[1641422202957,5.76300527,3471.7,3471.1,0.00170527]
[1641422203155,5.76300527,3471.7,3471.3,3.59973]
[1641422203156,0.00113685,3471.6,3471.3,3.59973]
[1641422203452,0.00113685,3471.6,3471.3,2.4599]
[1641422203651,0.01324222,3473.2,3471.3,1.73997]
[1641422203953,5.76852635,3473.1,3471.4,0.00113685]
[1641422204153,5.76852635,3473.1,3472.1,1.43965]
[1641422204355,0.00795793,3473.0,3472.1,1.43965]
[1641422204654,0.01324222,3473.2,3472.1,1.43965]
[1641422204655,5.76738951,3472.9,3472.1,1.43965]
[1641422205053,0.00682108,3472.8,3472.2,0.00129698]
[1641422205254,5.76,3472.7,3472.3,0.7198]
[1641422205454,5.76,3472.7,3472.3,0.72264211]
[1641422205657,3.43901788,3472.7,3472.6,0.01289516]
[1641422205854,2.93901788,3472.7,3472.6,0.01289516]
[1641422206058,2.93901788,3472.7,3472.6,0.014032]
[1641422206317,0.00170527,3473.1,3472.6,2.172862]
[1641422206520,6.11083028,3474.8,3472.6,8.1042983]
[1641422206723,6.11083028,3474.8,3473.6,0.01218493]
[1641422207122,7.03702958,3475.6,3473.7,3.0]
[1641422207323,10.5686142,3475.6,3473.8,5.9314363]
[1641422207524,0.01364217,3475.5,3474.6,0.01259778]
[1641422207925,0.01307374,3475.4,3474.2,1.43875]
[1641422208327,5.76820532,3475.3,3474.2,7.3701863]
[1641422208524,5.76820532,3475.3,3474.2,7.6701863]
[1641422208725,5.7557,3475.3,3474.2,7.6701863]
[1641422208926,3.73229457,3475.3,3474.6,0.01285841]
[1641422209124,3.9107,3477.6,3475.2,0.01267232]
[1641422209328,5.21814164,3478.1,3475.2,0.01267232]
[1641422209329,0.01284164,3478.1,3475.5,1.43818]
[1641422209626,0.01307374,3477.5,3476.0,0.01229326]
[1641422209827,5.6525,3477.4,3476.0,0.01229326]
[1641422210048,5.6525,3477.4,3476.1,0.00795793]
[1641422210455,0.01210487,3478.6,3476.1,0.00795793]
[1641422210650,0.01210487,3478.6,3476.5,0.71893]
[1641422210855,0.01210487,3478.6,3476.2,0.01231168]
[1641422210856,0.00568423,3478.5,3476.2,0.01231168]
[1641422211052,0.00568423,3478.5,3476.6,0.00511582]
[1641422211252,0.00511581,3478.4,3476.7,0.13819997]
[1641422211457,0.00511581,3478.4,3476.7,6.20783624]
[1641422211658,0.00454738,3478.3,3477.2,0.71874]
[1641422211858,5.7508,3478.2,3477.7,0.7187]
[1641422212056,5.75477896,3478.2,3477.7,0.7187]
[1641422212256,0.00341054,3478.1,3477.7,0.7187]
[1641422212455,5.7508,3478.0,3477.3,0.00113685]
[1641422212655,5.75364211,3478.0,3477.3,0.00113685]
[1641422212860,0.00227369,3477.9,3477.3,0.00113685]
[1641422213061,0.01287193,3479.2,3477.7,0.71863]
[1641422213262,5.7497,3479.1,3478.3,0.71851]
[1641422213470,0.00682108,3479.1,3478.7,0.01299376]
[1641422213660,7.34685034,3480.5,3478.7,0.01299376]
[1641422213911,7.34685034,3480.5,3479.0,0.01253298]
[1641422214110,0.004,3481.1,3479.0,2.16699298]
[1641422214316,5.747,3481.0,3479.5,3.0]
[1641422214516,5.747,3481.0,3479.6,6.0958975]
[1641422214517,5.75041054,3481.0,3479.6,6.0958975]
[1641422214714,0.72286088,3481.2,3479.9,0.01278549]
[1641422214916,47.622,3482.0,3481.0,2.0]
[1641422215117,22.8727,3482.0,3481.1,0.01252217]
[1641422215318,22.8727,3482.0,3481.9,0.01281472]
[1641422215319,4.756,3482.0,3481.9,0.01281472]
[1641422215518,8.62197379,3482.7,3481.9,0.01281472]
[1641422215519,4.12667379,3482.7,3481.9,0.01281472]
[1641422215716,0.00568423,3482.0,3481.9,0.01281472]
[1641422215918,4.12667379,3484.5,3481.9,0.71524224]
[1641422216120,10.51142548,3486.1,3483.6,0.0128768]
[1641422216318,10.51142548,3486.1,3482.0,10.8552446]
[1641422216319,10.51142548,3486.1,3485.4,0.6]
[1641422216518,0.114709,3489.9,3485.4,0.6]
[1641422216519,3.79708225,3490.3,3485.5,70.88190356]
[1641422216718,3.79708225,3490.3,3486.1,2.9712984]
[1641422216719,1.52748225,3490.3,3486.1,2.9712984]
[1641422216917,1.48731579,3490.3,3487.9,0.7478051]
[1641422217119,2.0,3492.2,3489.6,0.01225488]
[1641422217319,5.49170531,3492.1,3490.0,1.43151]
[1641422217550,5.49170531,3492.1,3491.3,0.01275547]
[1641422217551,0.01080005,3492.1,3491.3,0.01275547]
[1641422217750,5.38157931,3492.0,3491.4,0.2893984]
[1641422217951,16.16792439,3492.4,3491.7,0.75437204]
[1641422217952,11.5100012,3492.4,3491.7,0.75437204]
[1641422218152,1.79574018,3494.2,3492.3,3.04691148]
[1641422218353,2.86158901,3494.1,3494.0,0.01287259]
[1641422218552,19.86546665,3495.0,3494.0,0.01287259]
[1641422218755,5.7233,3494.9,3494.1,63.47141456]
[1641422218951,0.4995,3497.0,3495.3,0.41756561]
[1641422219157,0.4995,3497.0,3494.5,0.03776996]
[1641422219158,0.4995,3497.0,3495.4,27.94068182]
[1641422219355,0.4995,3497.0,3495.3,0.41756561]
[1641422219356,5.62942635,3496.4,3495.3,0.41756561]
[1641422219656,5.62942635,3496.4,3495.7,0.01255431]
[1641422219657,5.42618851,3496.4,3495.7,0.01255431]
[1641422219856,2.5816645,3496.4,3496.3,1.01230468]
[1641422220159,0.4995,3497.0,3496.3,30.98695195]
[1641422220160,0.21657276,3497.0,3496.3,30.98695195]
[1641422220360,0.01279565,3499.5,3496.4,55.49360432]
[1641422220555,0.01279565,3499.5,3496.3,1.26484271]
[1641422220556,5.72264212,3496.9,3496.3,1.26484271]
[1641422220755,7.3731,3501.2,3497.1,3.0]
[1641422220756,0.0127324,3498.7,3497.1,3.0]
[1641422220958,0.0125225,3499.9,3497.1,3.03293607]
[1641422221156,3.03525533,3503.9,3497.1,3.03293607]
[1641422221157,5.81949756,3502.1,3497.9,0.01271042]
[1641422221416,0.01266233,3501.0,3497.2,0.00397896]
[1641422221611,0.01080005,3499.8,3498.4,5.88153833]
[1641422221809,0.01080005,3499.8,3498.4,5.88977106]
[1641422222006,0.01248228,3499.9,3498.5,27.63624186]
[1641422222007,0.01023162,3499.7,3498.5,27.63624186]
[1641422222207,14.99080362,3500.0,3498.6,27.64964615]
[1641422222408,14.99080362,3500.0,3499.3,5.84741199]
[1641422222608,5.71653685,3499.9,3499.3,5.84741199]
[1641422222807,5.71653685,3499.9,3499.4,0.00170527]
[1641422223208,5.71653685,3499.9,3499.1,0.00341054]
[1641422223408,5.71653685,3499.9,3499.0,3.03900273]
[1641422223409,5.71653685,3499.9,3499.2,0.00284211]
[1641422223607,5.71653685,3499.9,3499.1,0.10387752]
[1641422223807,5.71653685,3499.9,3499.1,0.00341054]
[1641422224010,5.71653685,3499.9,3499.2,0.11084211]
[1641422224209,5.71653685,3499.9,3499.1,0.78958312]
[1641422224409,5.71653685,3499.9,3499.3,0.00227369]
[1641422224609,5.71653685,3499.9,3499.2,0.66857258]
[1641422224610,2.86564629,3499.9,3499.2,0.78021469]
[1641422224810,2.81564629,3499.9,3499.3,0.11221054]
[1641422225060,2.81564629,3499.9,3499.3,0.3]
[1641422225262,0.00284212,3499.8,3499.4,0.136]
[1641422225461,2.81564629,3499.7,3499.6,0.0082]
[1641422225664,0.47725533,3499.7,3499.6,0.0082]
[1641422225960,14.99080362,3500.0,3499.6,0.0082]
[1641422225961,14.99080362,3500.0,3499.7,25.0]
[1641422226162,14.86500362,3500.0,3499.6,27.84789143]
[1641422226361,5.11619706,3499.9,3499.8,7.67694141]
[1641422226666,10.88120383,3500.0,3499.8,35.35638327]
[1641422226962,0.31756463,3500.0,3499.8,36.14042458]
[1641422227161,0.01285734,3503.4,3499.9,55.78231292]
[1641422227360,5.7116,3503.3,3501.0,0.01240314]
[1641422227564,0.01648428,3502.8,3501.7,7.5]
[1641422227761,6.4224,3502.7,3501.7,7.5]
[1641422227961,6.43831586,3502.7,3502.6,2.0]
[1641422228161,6.4224,3502.7,3502.6,2.0]
[1641422228801,6.4224,3502.7,3502.6,2.00383585]
[1641422229003,6.4224,3502.7,3502.6,1.95383585]
[1641422229603,12.1324,3502.7,3502.6,1.95383585]
[1641422230204,12.0324,3502.7,3502.6,2.07063585]
[1641422230409,12.0324,3502.7,3502.6,1.95383585]
[1641422230804,12.0324,3502.7,3502.6,2.23861897]
[1641422231008,12.0324,3502.7,3502.6,0.28478312]
[1641422231207,11.43597199,3502.7,3502.6,0.28478312]
[1641422231508,11.43256099,3502.7,3502.6,0.28478312]
[1641422232578,11.38256099,3502.7,3502.6,0.28478312]
[1641422232774,10.93256099,3502.7,3502.6,0.28478312]
[1641422232972,10.93256099,3502.7,3501.4,1.9536]
[1641422232973,10.93256099,3502.7,3501.7,0.28478312]
[1641422233273,0.01534743,3502.6,3501.7,0.28478312]
[1641422233473,10.93256099,3502.5,3501.7,0.28478312]
[1641422233671,0.08591315,3503.0,3501.7,0.28478312]
[1641422233872,0.08591315,3503.0,3502.2,0.01261275]
[1641422234071,5.71227369,3502.9,3502.2,0.01261275]
[1641422234280,5.71227369,3502.9,3502.3,0.00113685]
[1641422234475,0.00170527,3502.8,3502.3,0.00113685]
[1641422234672,5.71,3502.7,3502.2,0.25958312]
[1641422234873,5.71,3502.7,3502.3,0.25958312]
[1641422234874,5.71113685,3502.7,3502.3,0.25958312]
[1641422235075,5.71113685,3502.7,3501.6,7.75]
[1641422235076,0.01250599,3502.5,3501.6,7.75]
[1641422235477,0.01250599,3502.5,3501.7,0.00341054]
[1641422235676,0.08591315,3503.0,3501.7,0.00341054]
[1641422235873,5.7104,3502.9,3501.7,0.00341054]
[1641422236075,0.01291423,3502.6,3501.6,0.75741581]
[1641422236300,5.7104,3502.5,3500.7,1.9536]
[1641422236504,5.71494739,3502.5,3502.3,20.60483201]